fUSD/lending_fUSD_20250311
["ID","MTS","AMOUNT","RATE_DAILY","PERIOD"]
[355872079,1741661437818,-29836.7664,9.898e-05,2]
[355872080,1741661437828,-213.1609,9.898e-05,2]
[355872081,1741661437838,-566.537,9.898e-05,2]
[355872082,1741661437847,-2164.06965686,9.898e-05,2]
[355872083,1741661437919,-1104.90149786,9.898e-05,2]
[355872084,1741661437931,-1731.02884528,9.898e-05,2]
[355872085,1741661437941,-165.66,9.951e-05,2]
[355872086,1741661437950,-150.0,9.988e-05,2]
[355872087,1741661437959,-641.0,9.988e-05,2]
[355872088,1741661437969,-1418.0,9.988e-05,2]
[355872089,1741661437978,-171.0,9.988e-05,2]
[355872090,1741661437987,-150.0,9.988e-05,2]
[355872091,1741661437996,-150.0,9.988e-05,2]
[355872092,1741661438006,-281.281,9.988e-05,2]
[355872093,1741661438015,-442.1260877,9.998e-05,2]
[355872094,1741661438026,-64599.90465436,9.998e-05,2]
[355872095,1741661438045,-1426.51243399,9.998e-05,2]
[355872096,1741661438057,-1290.0,9.998e-05,2]
[355872097,1741661438069,-1011.85,9.998e-05,2]
[355872098,1741661438080,-3819.62466951,9.998e-05,2]
[355872099,1741661438105,-7524.1778732,9.998e-05,2]
[355872100,1741661438117,-5602.70304,9.998e-05,2]
[355872101,1741661438142,-612.60000005,9.998e-05,2]
[355872102,1741661438153,-900.48983006,9.998e-05,2]
[355872103,1741661438164,-2216.26776514,9.998e-05,2]
[355872133,1741661444115,-428.368,9.988e-05,2]
[355872134,1741661444125,-1809.43144106,9.998e-05,2]
[355872135,1741661444136,-4897.1909532,9.998e-05,2]
[355872136,1741661444148,-9289.25953684,9.998e-05,2]
[355872142,1741661446162,-1602.70349695,9.998e-05,2]
[355872143,1741661446212,-31376.91292843,9.998e-05,2]
[355872144,1741661446225,-5727.067215,9.998e-05,2]
[355872146,1741661446323,-2089.91707358,9.998e-05,2]
[355872147,1741661446333,-1146.0,9.998e-05,2]
[355872148,1741661446343,-3624.85738582,9.998e-05,2]
[355872198,1741661532259,1430.56,8.219e-05,2]
[355872218,1741662632088,-250.0,8.949e-05,2]
[355872219,1741662632099,-2097.49535776,8.971e-05,2]
[355872220,1741662632111,-6533.99523132,8.971e-05,2]
[355872221,1741662632352,-592.27941092,8.971e-05,2]
[355872222,1741662632364,-150.0,8.994e-05,2]
[355872223,1741662632374,-1386.9839449,9.02e-05,2]
[355872224,1741662632386,-613.0160551,9.02e-05,2]
[355872225,1741662632396,-2243.53,9.045e-05,2]
[355872226,1741662632406,-561.8,9.061e-05,2]
[355872227,1741662632416,-165.07,9.113e-05,2]
[355872228,1741662632426,-1000.0,9.152e-05,2]
[355872229,1741662632435,-1224.58,9.21e-05,2]
[355872230,1741662632445,-529.57,9.362e-05,2]
[355872231,1741662632455,-150.0,9.562e-05,7]
[355872233,1741662632465,-150.0,9.868e-05,2]
[355872235,1741662632475,-176.9698,9.898e-05,2]
[355872237,1741662632485,-903.7166,9.898e-05,2]
[355872239,1741662632495,-2545.3942,9.898e-05,2]
[355872241,1741662632505,-2500.0,9.898e-05,2]
[355872243,1741662632516,-554.15636776,9.9e-05,3]
[355872245,1741662632526,-150.0,9.919e-05,2]
[355872246,1741662632540,-500.0,9.973e-05,2]
[355872247,1741662632550,-246.752,9.988e-05,2]
[355872248,1741662632560,-150.0,9.988e-05,2]
[355872249,1741662632571,-1000.0,9.997e-05,2]
[355872250,1741662632580,-2318.932,9.997e-05,2]
[355872251,1741662632590,-154.788,9.997e-05,2]
[355872252,1741662632600,-150.0,9.997e-05,2]
[355872253,1741662632611,-933.0,9.998e-05,2]
[355872254,1741662632620,-221.06304385,9.998e-05,2]
[355872255,1741662632630,-668.6628757,9.998e-05,2]
[355872257,1741662638214,-1848.58418204,9.998e-05,2]
[355872258,1741662638226,-701.70235113,9.998e-05,2]
[355872259,1741662638297,-8402.87019244,9.998e-05,2]
[355872269,1741662638406,-602.48168055,9.998e-05,2]
[355872273,1741662640095,-4000.0,9.998e-05,2]
[355872274,1741662640107,-634.6602709,9.998e-05,2]
[355872275,1741662640120,-1122.705,9.998e-05,2]
[355872276,1741662640132,-798.52623198,9.998e-05,2]
[355872277,1741662640144,-900.0,9.998e-05,2]
[355872278,1741662640156,-1030.82396,9.998e-05,2]
[355872280,1741662640168,-500.0,9.998e-05,2]
[355872281,1741662640345,-254.98887991,9.998e-05,2]
[355872282,1741662640358,-3537.08530993,9.998e-05,2]
[355872283,1741662640412,-1000.0,9.998e-05,2]
[355872284,1741662640424,-2195.30000002,9.998e-05,2]
[355872317,1741662643041,-7643.34046316,9.998e-05,2]
[355872318,1741662643053,-3163.5,9.998e-05,2]
[355872333,1741662643211,-1036.73368978,9.998e-05,2]
[355872342,1741662789860,1477.64,8.219e-05,2]
[355872343,1741662929869,-300.0,8.971e-05,2]
[355872383,1741663832415,-700.0,8.971e-05,2]
[355872384,1741663832425,-198.56913686,8.971e-05,2]
[355872385,1741663832454,-2055.50086314,8.971e-05,2]
[355872386,1741663832464,-150.0,8.978e-05,2]
[355872387,1741663832473,-592.28,8.986e-05,2]
[355872388,1741663832483,-2000.0,8.998e-05,2]
[355872389,1741663832492,-150.0,8.999e-05,2]
[355872390,1741663832502,-550.0,9e-05,2]
[355872391,1741663832512,-164.73,9.042e-05,2]
[355872392,1741663832522,-300.0,9.084e-05,2]
[355872393,1741663832531,-249.61,9.085e-05,2]
[355872394,1741663832541,-608.42,9.085e-05,2]
[355872395,1741663832551,-150.99,9.085e-05,2]
[355872396,1741663832560,-999.99,9.085e-05,2]
[355872397,1741663832569,-150.0,9.562e-05,7]
[355872398,1741663832579,-417.96582526,9.851e-05,2]
[355872399,1741663832589,-150.0,9.868e-05,2]
[355872400,1741663832598,-5000.0,9.898e-05,2]
[355872401,1741663832608,-926.9999999,9.9e-05,3]
[355872402,1741663832618,-500.0,9.973e-05,2]
[355872403,1741663832627,-645.916,9.988e-05,2]
[355872404,1741663832637,-150.0,9.988e-05,2]
[355872405,1741663832646,-420.0,9.993e-05,2]
[355872406,1741663832656,-150.0,9.994e-05,2]
[355872407,1741663832666,-500.0,9.994e-05,2]
[355872408,1741663832676,-360.08695205,9.994e-05,2]
[355872409,1741663832687,-465.76354496,9.995e-05,2]
[355872410,1741663832697,-22260.60474049,9.995e-05,2]
[355872411,1741663832717,-686.38615094,9.995e-05,2]
[355872412,1741663832778,-428.59704607,9.995e-05,2]
[355872413,1741663832790,-1096.78998224,9.995e-05,2]
[355872415,1741663832809,-5433.70590166,9.995e-05,2]
[355872417,1741663832821,-328.01300429,9.995e-05,2]
[355872448,1741663838197,-246.752,9.988e-05,2]
[355872449,1741663838208,-88258.22683899,9.995e-05,2]
[355872450,1741663838219,-65478.62111569,9.995e-05,2]
[355872451,1741663838475,-289.89607018,9.995e-05,2]
[355872673,1741663840876,-1271.37169765,9.995e-05,2]
[355872674,1741663840915,-1679.8695867,9.995e-05,2]
[355872675,1741663840968,-3789.63531543,9.995e-05,2]
[355872677,1741663840980,-4013.84546978,9.995e-05,2]
[355872678,1741663840993,-5614.20052323,9.995e-05,2]
[355872682,1741663841018,-545.36572459,9.995e-05,2]
[355872684,1741663841030,-354.63427541,9.995e-05,2]
[355872930,1741663843362,-993.52601603,9.995e-05,2]
[355872932,1741663843373,-1606.46142395,9.995e-05,2]
[355872935,1741663843386,-8402.4,9.995e-05,2]
[355872941,1741663843632,-3549.96844399,9.995e-05,2]
[355872958,1741663846329,-3104.192539,9.995e-05,2]
[355872959,1741663846368,-680.31065153,9.995e-05,2]
[355872960,1741663846380,-1079.86862566,9.995e-05,2]
[355872961,1741663846408,-656.28263316,9.995e-05,2]
[355872962,1741663846420,-1936.62483291,9.995e-05,2]
[355872963,1741663846432,-769.686283,9.995e-05,2]
[355872964,1741663846443,-49213.03305148,9.995e-05,2]
[355872965,1741663846455,-543.2619752,9.995e-05,2]
[355872966,1741663846482,-4672.00804507,9.995e-05,2]
[355872967,1741663846494,-5641.23681373,9.995e-05,2]
[355872968,1741663846579,-379.89623438,9.995e-05,2]
[355872969,1741663846591,-8936.01055095,9.995e-05,2]
[355872970,1741663846604,-470.22347517,9.995e-05,2]
[355872971,1741663846616,-335.30570427,9.995e-05,2]
[355872972,1741663846632,-918.11091072,9.995e-05,2]
[355872975,1741663846658,-879.41035815,9.995e-05,2]
[355872979,1741663846685,-256.66698,9.995e-05,2]
[355873010,1741663868502,1403.75,8.219e-05,2]
[355873011,1741664010571,330.0,0.00020111,120]
[355873012,1741664572630,516.21,8.727e-05,2]
[355873013,1741664629934,1386.98,8.727e-05,2]
[355873014,1741664730493,164.73,8.714e-05,2]
[355873017,1741664851872,1500.0,8.671e-05,2]
[355873018,1741664890623,1450.48,8.698e-05,2]
[355873070,1741665031905,-152.7,8.948e-05,2]
[355873071,1741665031915,-150.0,8.954e-05,2]
[355873072,1741665031924,-150.0,8.969e-05,2]
[355873073,1741665031934,-397.49,8.972e-05,2]
[355873074,1741665031943,-2229.32141144,8.986e-05,2]
[355873075,1741665031954,-2501.25394069,8.986e-05,2]
[355873076,1741665031967,-293.49962424,8.986e-05,2]
[355873077,1741665032012,-8611.23502363,8.986e-05,2]
[355873078,1741665032022,-283.71195465,8.994e-05,2]
[355873079,1741665032059,-470.31804535,8.994e-05,2]
[355873080,1741665032069,-1000.0,8.997e-05,2]
[355873081,1741665032079,-250.0,8.998e-05,2]
[355873082,1741665032088,-550.0,9e-05,2]
[355873083,1741665032097,-152.7,9.015e-05,2]
[355873084,1741665032107,-152.7,9.083e-05,2]
[355873085,1741665032117,-307.58,9.086e-05,2]
[355873086,1741665032126,-580.57,9.089e-05,2]
[355873087,1741665032136,-152.7,9.15e-05,2]
[355873088,1741665032146,-152.7,9.217e-05,2]
[355873089,1741665032155,-152.7,9.284e-05,2]
[355873090,1741665032165,-152.7,9.351e-05,2]
[355873091,1741665032174,-152.7,9.418e-05,2]
[355873092,1741665032185,-152.7,9.485e-05,2]
[355873093,1741665032195,-150.0,9.562e-05,7]
[355873094,1741665032205,-1074.648579,9.795e-05,2]
[355873096,1741665032215,-554.15636776,9.8e-05,3]
[355873098,1741665032228,-150.0,9.843e-05,2]
[355873100,1741665032237,-150.0,9.884e-05,2]
[355873102,1741665032247,-1619.3356,9.895e-05,2]
[355873104,1741665032258,-1000.0,9.897e-05,2]
[355873106,1741665032267,-1003.31926246,9.898e-05,2]
[355873111,1741665032307,-5509.2963232,9.898e-05,2]
[355873113,1741665032319,-580.99624631,9.898e-05,2]
[355873130,1741665037716,-1233.42756601,9.898e-05,2]
[355873131,1741665037728,-405.30740202,9.898e-05,2]
[355873132,1741665037739,-344.66259778,9.898e-05,2]
[355873133,1741665037750,-560.05861585,9.898e-05,2]
[355873134,1741665037762,-1595.27878637,9.898e-05,2]
[355873135,1741665037771,-3953.52121363,9.898e-05,2]
[355873136,1741665037805,-997.4913182,9.898e-05,2]
[355873137,1741665037817,-172.88926817,9.898e-05,2]
[355873138,1741665037827,-500.0,9.898e-05,2]
[355873139,1741665037836,-126.09073183,9.898e-05,2]
[355873140,1741665037888,-348.42026817,9.898e-05,2]
[355873142,1741665037898,-2545.3942,9.898e-05,2]
[355873144,1741665037908,-1240.6643,9.9e-05,2]
[355873146,1741665037917,-868.08361754,9.947e-05,2]
[355873148,1741665037927,-500.40253572,9.973e-05,2]
[355873150,1741665037936,-398.95953209,9.973e-05,2]
[355873152,1741665037946,-2318.932,9.973e-05,2]
[355873154,1741665037956,-154.788,9.973e-05,2]
[355873155,1741665037965,-150.0,9.988e-05,2]
[355873156,1741665037975,-4066.39771261,9.992e-05,2]
[355873157,1741665038027,-528.28347968,9.992e-05,2]
[355873158,1741665038040,-9002.84197501,9.992e-05,2]
[355873159,1741665038050,-944.7784449,9.992e-05,2]
[355873160,1741665038059,-2241.5807445,9.992e-05,2]
[355873161,1741665038068,-693.66883568,9.992e-05,2]
[355873162,1741665038107,-998.88015142,9.992e-05,2]
[355873163,1741665038116,-15711.53054989,9.995e-05,2]
[355873175,1741665041690,-664.42443544,9.995e-05,2]
[355873185,1741665043121,-2194.856,9.995e-05,2]
[355873186,1741665043150,-798.19146953,9.995e-05,2]
[355873187,1741665043162,-1710.25434547,9.995e-05,2]
[355873188,1741665043174,-1017.6830018,9.995e-05,2]
[355873189,1741665043186,-1189.88173211,9.995e-05,2]
[355873190,1741665043198,-446.51173508,9.995e-05,2]
[355873191,1741665043210,-991.20735264,9.995e-05,2]
[355873192,1741665043221,-365.53632244,9.997e-05,2]
[355873193,1741665043233,-500.0,9.997e-05,2]
[355873194,1741665043242,-500.0,9.997e-05,2]
[355873195,1741665043252,-543.755123,9.997e-05,2]
[355873196,1741665043263,-232.88177249,9.997e-05,2]
[355873197,1741665043272,-1192.61413889,9.997e-05,2]
[355873198,1741665043343,-38224.79599848,9.997e-05,2]
[355873199,1741665043366,-3867.34,9.997e-05,2]
[355873200,1741665043404,-800.069992,9.997e-05,2]
[355873201,1741665043422,-6266.8835218,9.997e-05,2]
[355873202,1741665043479,-1152.9712,9.997e-05,2]
[355873204,1741665045283,-676.16000008,9.997e-05,2]
[355873205,1741665045301,-2782.7,9.997e-05,2]
[355873206,1741665045319,-15275.11202038,9.997e-05,2]
[355873226,1741665047227,-500.0,9.997e-05,2]
[355873227,1741665047265,-8087.5335642,9.997e-05,2]
[355873228,1741665047277,-11580.07687563,9.997e-05,2]
[355873229,1741665047288,-4445.38032,9.997e-05,2]
[355873230,1741665047330,-1427.26659171,9.997e-05,2]
[355873231,1741665047341,-1159.3,9.997e-05,2]
[355873232,1741665047352,-1000.0,9.997e-05,2]
[355873233,1741665047378,-60890.77187075,9.997e-05,2]
[355873234,1741665047389,-38368.9285714,9.997e-05,2]
[355873235,1741665047401,-38117.55833471,9.997e-05,2]
[355873236,1741665047411,-928.0,9.998e-05,2]
[355873237,1741665047421,-12703.72706098,9.998e-05,2]
[355873238,1741665047432,-58637.07822018,9.998e-05,2]
[355873239,1741665047457,-9771.2,9.998e-05,2]
[355873247,1741665173489,1555.24,8.219e-05,2]
[355873248,1741665277105,-163.11305414,8.902e-05,2]
[355873250,1741665691557,1729.33,8.835e-05,2]
[355873251,1741665804734,158.0,8.836e-05,2]
[355873252,1741665805118,198.74,8.836e-05,2]
[355873253,1741665827842,2677.74,8.726e-05,2]
[355873254,1741665871248,500.0,8.725e-05,2]
[355873264,1741666085436,296.91,8.748e-05,2]
[355873276,1741666154387,200.0,8.715e-05,2]
[355873320,1741666205650,1477.47,8.219e-05,2]
[355873323,1741666231811,-836.88694586,8.902e-05,2]
[355873324,1741666231822,-333.91622677,8.902e-05,2]
[355873325,1741666231831,-150.0,8.91e-05,2]
[355873326,1741666231841,-164.38,8.918e-05,2]
[355873327,1741666231851,-400.13,8.933e-05,2]
[355873328,1741666231861,-162.63833889,8.935e-05,2]
[355873329,1741666231870,-150.0,8.935e-05,2]
[355873330,1741666231880,-1275.17871147,8.949e-05,2]
[355873331,1741666231892,-159.40128853,8.949e-05,2]
[355873332,1741666231901,-250.0,8.973e-05,2]
[355873333,1741666231911,-158.0,9.012e-05,2]
[355873334,1741666231921,-158.0,9.189e-05,2]
[355873335,1741666231930,-300.0,9.3e-05,3]
[355873336,1741666231940,-158.0,9.366e-05,2]
[355873337,1741666231949,-600.0,9.4e-05,3]
[355873338,1741666231959,-152.52,9.454e-05,2]
[355873339,1741666231968,-900.0,9.5e-05,3]
[355873340,1741666231978,-150.0,9.562e-05,7]
[355873341,1741666231987,-1200.0,9.6e-05,3]
[355873342,1741666231997,-300.0,9.699e-05,2]
[355873343,1741666232007,-1289.83486509,9.7e-05,3]
[355873344,1741666232046,-210.16513491,9.7e-05,3]
[355873345,1741666232055,-150.0,9.792e-05,2]
[355873346,1741666232065,-327.75637446,9.797e-05,2]
[355873347,1741666232077,-707.8096982,9.797e-05,2]
[355873348,1741666232086,-300.0,9.8e-05,3]
[355873349,1741666232096,-903.7166,9.898e-05,2]
[355873350,1741666232106,-176.9698,9.898e-05,2]
[355873351,1741666232115,-2191.199,9.898e-05,2]
[355873352,1741666232125,-250.4411,9.898e-05,2]
[355873353,1741666232135,-913.48838493,9.898e-05,2]
[355873354,1741666232147,-1816.92473786,9.898e-05,2]
[355873355,1741666232159,-1696.92847721,9.898e-05,2]
[355873356,1741666232170,-150.0,9.898e-05,2]
[355873357,1741666232181,-2283.244,9.898e-05,2]
[355873358,1741666232191,-2500.0,9.898e-05,2]
[355873359,1741666232202,-300.0,9.9e-05,3]
[355873360,1741666232212,-1744.0,9.9e-05,2]
[355873361,1741666232223,-1855.145,9.976e-05,2]
[355873362,1741666232233,-154.788,9.976e-05,2]
[355873363,1741666232244,-10574.19,9.977e-05,2]
[355873364,1741666232253,-3754.4814152,9.992e-05,2]
[355873365,1741666232263,-5167.9882064,9.992e-05,2]
[355873366,1741666232272,-3763.82699736,9.997e-05,2]
[355873367,1741666232282,-842.0,9.998e-05,2]
[355873368,1741666232291,-232.88177247,9.998e-05,2]
[355873369,1741666232301,-45062.05076236,9.998e-05,2]
[355873370,1741666232327,-7453.55953814,9.998e-05,2]
[355873371,1741666232339,-486.87103,9.998e-05,2]
[355873372,1741666232351,-935.06652891,9.998e-05,2]
[355873373,1741666232389,-4742.82097401,9.998e-05,2]
[355873374,1741666232403,-5378.856,9.998e-05,2]
[355873375,1741666232415,-787.72537109,9.998e-05,2]
[355873376,1741666232426,-367.35042861,9.998e-05,2]
[355873377,1741666232438,-2526.68755423,9.998e-05,2]
[355873378,1741666232450,-6620.88382036,9.998e-05,2]
[355873379,1741666232489,-9729.30486478,9.998e-05,2]
[355873467,1741666237794,-162.63833889,8.949e-05,2]
[355873468,1741666237804,-112.68194071,9.898e-05,2]
[355873709,1741666240975,-1630.45315929,9.898e-05,2]
[355873711,1741666240984,-232.50695761,9.998e-05,2]
[355873898,1741666242894,-4131.92845925,9.998e-05,2]
[355873915,1741666242995,-574.35005528,9.998e-05,2]
[355873926,1741666243098,-762.03254079,9.998e-05,2]
[355873928,1741666243111,-1641.91733968,9.998e-05,2]
[355873930,1741666243123,-619.2449657,9.998e-05,2]
[355873975,1741666245817,-26387.43279008,9.998e-05,2]
[355873976,1741666245868,-31519.72063235,9.998e-05,2]
[355873977,1741666245879,-904.64662748,9.998e-05,2]
[355873978,1741666245981,-616.0,9.998e-05,2]
[355873979,1741666246030,-495.55749115,9.998e-05,2]
[355873980,1741666246084,-1947.29065129,9.998e-05,2]
[355873993,1741666998536,170.13,8.852e-05,2]
[355873994,1741667025129,234.49,8.852e-05,2]
[355874001,1741667251689,200.0,8.85e-05,2]
[355874034,1741667432300,-194.55,8.932e-05,2]
[355874035,1741667432310,-150.0,8.941e-05,2]
[355874036,1741667432320,-2000.0,8.95e-05,2]
[355874037,1741667432329,-2958.14564662,8.974e-05,2]
[355874038,1741667432363,-9155.14256453,8.974e-05,2]
[355874041,1741667432387,-1132.03220432,8.974e-05,2]
[355874042,1741667432399,-10654.67958453,8.974e-05,2]
[355874043,1741667432408,-191.1,8.974e-05,2]
[355874044,1741667432417,-905.84,8.992e-05,2]
[355874045,1741667432427,-1000.0,9e-05,2]
[355874046,1741667432436,-550.0,9e-05,2]
[355874047,1741667432446,-166.66,9.037e-05,2]
[355874048,1741667432455,-178.0,9.106e-05,2]
[355874049,1741667432464,-250.0,9.106e-05,2]
[355874050,1741667432474,-540.19,9.201e-05,2]
[355874052,1741667432483,-181.45,9.21e-05,2]
[355874054,1741667432492,-344.93,9.278e-05,2]
[355874056,1741667432501,-150.0,9.44e-05,2]
[355874058,1741667432511,-441.8,9.441e-05,2]
[355874060,1741667432522,-441.8,9.441e-05,2]
[355874062,1741667432531,-441.8,9.441e-05,2]
[355874064,1741667432541,-344.99,9.486e-05,2]
[355874066,1741667432550,-150.0,9.562e-05,7]
[355874068,1741667432559,-162.787941,9.6e-05,2]
[355874070,1741667432569,-1000.81235111,9.798e-05,2]
[355874071,1741667432578,-1003.84405673,9.798e-05,2]
[355874072,1741667432587,-150.0,9.825e-05,2]
[355874073,1741667432597,-150.0,9.825e-05,2]
[355874074,1741667432606,-6511.52398158,9.828e-05,2]
[355874075,1741667432615,-8660.9846735,9.898e-05,2]
[355874139,1741667437991,-16137.98883949,9.898e-05,2]
[355874140,1741667438050,-6820.82040998,9.898e-05,2]
[355874343,1741667440279,-6250.24527703,9.898e-05,2]
[355874345,1741667440289,-512.2277,9.898e-05,2]
[355874347,1741667440298,-2293.38711936,9.898e-05,2]
[355874358,1741667440401,-206.61288064,9.898e-05,2]
[355874361,1741667440410,-9478.0865,9.898e-05,2]
[355874362,1741667440420,-500.0,9.898e-05,2]
[355874364,1741667440429,-1837.526,9.907e-05,2]
[355874366,1741667440439,-154.788,9.912e-05,2]
[355874368,1741667440449,-500.0,9.973e-05,2]
[355874370,1741667440458,-179.21078153,9.978e-05,2]
[355874372,1741667440467,-12752.3038342,9.992e-05,2]
[355874374,1741667440476,-2122.93838891,9.992e-05,2]
[355874381,1741667440525,-427.52237799,9.992e-05,2]
[355874383,1741667440534,-41.44762201,9.992e-05,2]
[355874514,1741667443530,-1083.9901499,9.792e-05,2]
[355874515,1741667443540,-3320.88925199,9.992e-05,2]
[355874516,1741667443550,-63568.57081817,9.998e-05,2]
[355874522,1741667443661,-306.0,9.998e-05,2]
[355874534,1741667446009,-82393.77510595,9.998e-05,2]
[355874535,1741667446068,-4481.46949273,9.998e-05,2]
[355874536,1741667446080,-3812.25802087,9.998e-05,2]
[355874537,1741667446126,-359.59283247,9.998e-05,2]
[355874538,1741667446138,-1637.58127468,9.998e-05,2]
[355874539,1741667446150,-16042.9988311,9.998e-05,2]
[355874540,1741667446186,-726.52366915,9.998e-05,2]
[355874541,1741667446199,-1230.0823413,9.998e-05,2]
[355874542,1741667446246,-53201.5391536,9.998e-05,2]
[355874543,1741667446255,-743.4608464,9.998e-05,2]
[355874544,1741667446267,-32671.81506098,9.998e-05,2]
[355874545,1741667446306,-378.8694,9.998e-05,2]
[355874546,1741667446318,-3088.43388188,9.998e-05,2]
[355874547,1741667446329,-1130.07324647,9.998e-05,2]
[355874600,1741667837628,200.0,7.36e-05,2]
[355874601,1741667965157,200.08381274,7.323e-05,2]
[355874602,1741668013187,2000.0,8.591e-05,2]
[355874603,1741668027572,187.28,8.591e-05,2]
[355874604,1741668034884,17308.42,8.605e-05,2]
[355874605,1741668068416,1621.21,8.219e-05,2]
[355874606,1741668098807,740.72,8.574e-05,2]
[355874607,1741668117039,13190.82,8.584e-05,2]
[355874608,1741668289743,1406.69,8.526e-05,2]
[355874614,1741668442038,166.66,8.775e-05,2]
[355874618,1741668593910,11279.63,8.596e-05,2]
[355874621,1741668632432,-316.52362598,8.92e-05,2]
[355874622,1741668632444,-202.37637402,8.92e-05,2]
[355874623,1741668632455,-128.17943613,8.965e-05,2]
[355874625,1741668635230,-21.82056387,8.965e-05,2]
[355874626,1741668635240,-151.87,8.988e-05,2]
[355874627,1741668635251,-150.0,8.989e-05,2]
[355874628,1741668635261,-739.62,8.999e-05,2]
[355874629,1741668635270,-250.0,8.999e-05,2]
[355874630,1741668635281,-550.0,9e-05,2]
[355874631,1741668635292,-151.87,9.016e-05,2]
[355874632,1741668635302,-150.0,9.041e-05,2]
[355874633,1741668635311,-151.87,9.045e-05,2]
[355874634,1741668635321,-151.87,9.073e-05,2]
[355874635,1741668635331,-151.87,9.101e-05,2]
[355874636,1741668635341,-151.87,9.13e-05,2]
[355874637,1741668635351,-2356.51597093,9.137e-05,2]
[355874638,1741668635360,-151.87,9.158e-05,2]
[355874639,1741668635369,-151.87,9.187e-05,2]
[355874640,1741668635379,-151.87,9.215e-05,2]
[355874641,1741668635389,-1000.0,9.217e-05,2]
[355874642,1741668635399,-236.00177613,9.239e-05,2]
[355874643,1741668635408,-151.87,9.243e-05,2]
[355874644,1741668635418,-151.87,9.272e-05,2]
[355874645,1741668635427,-300.0,9.277e-05,2]
[355874646,1741668635437,-173.0562571,9.278e-05,2]
[355874647,1741668635476,-171.9937429,9.278e-05,2]
[355874648,1741668635486,-345.05,9.278e-05,2]
[355874649,1741668635496,-345.05,9.278e-05,2]
[355874650,1741668635505,-345.05,9.278e-05,2]
[355874651,1741668635515,-341.41,9.278e-05,2]
[355874652,1741668635526,-151.87,9.3e-05,2]
[355874653,1741668635537,-2046.97,9.314e-05,2]
[355874654,1741668635546,-151.87,9.329e-05,2]
[355874655,1741668635555,-151.87,9.357e-05,2]
[355874656,1741668635565,-852.95608735,9.372e-05,2]
[355874657,1741668635574,-150.0,9.372e-05,2]
[355874658,1741668635583,-649.58251405,9.372e-05,2]
[355874659,1741668635593,-151.87,9.385e-05,2]
[355874660,1741668635603,-376.69398878,9.407e-05,2]
[355874661,1741668635613,-151.87,9.414e-05,2]
[355874662,1741668635622,-253.76315683,9.432e-05,2]
[355874663,1741668635631,-151.87,9.442e-05,2]
[355874664,1741668635641,-101.52770776,9.47e-05,2]
[355874665,1741668635652,-50.34229224,9.47e-05,2]
[355874666,1741668635662,-151.87,9.499e-05,2]
[355874667,1741668635671,-151.87,9.527e-05,2]
[355874669,1741668635681,-150.0,9.562e-05,7]
[355874671,1741668635691,-69.42956932,9.784e-05,2]
[355874675,1741668635716,-146.81442255,9.784e-05,2]
[355874677,1741668635726,-141.18557745,9.798e-05,2]
[355874679,1741668635737,-887.42825073,9.798e-05,2]
[355874681,1741668635747,-150.0,9.837e-05,2]
[355874683,1741668635757,-38.00174927,9.876e-05,2]
[355874691,1741668635822,-403.79825073,9.876e-05,2]
[355874693,1741668635832,-789.4,9.876e-05,2]
[355874695,1741668635841,-408.26207205,9.896e-05,2]
[355874697,1741668635853,-591.73792795,9.896e-05,2]
[355874699,1741668635863,-3317.98077814,9.898e-05,2]
[355874704,1741668635902,-14570.57001997,9.898e-05,2]
[355874706,1741668635914,-1970.18623878,9.898e-05,2]
[355874708,1741668635926,-3149.999975,9.898e-05,2]
[355874710,1741668635938,-973.725,9.898e-05,2]
[355874713,1741668635950,-8037.14738811,9.898e-05,2]
[355874715,1741668635959,-2420.63517973,9.898e-05,2]
[355874717,1741668635971,-542.92,9.898e-05,2]
[355874719,1741668635984,-479.93,9.898e-05,2]
[355874726,1741668636036,-1723.48107256,9.898e-05,2]
[355874727,1741668636047,-523.64443623,9.898e-05,2]
[355874739,1741668636419,-1129.79283877,9.898e-05,2]
[355874744,1741668638155,-2743.07101421,9.898e-05,2]
[355874748,1741668638701,-8818.3700585,9.898e-05,2]
[355874749,1741668638712,-292.2936,9.898e-05,2]
[355874750,1741668638722,-1752.748,9.898e-05,2]
[355874751,1741668638731,-154.78981742,9.898e-05,2]
[355874752,1741668638741,-230.4471,9.898e-05,2]
[355874753,1741668638751,-457.4763,9.973e-05,2]
[355874754,1741668638760,-500.0,9.973e-05,2]
[355874755,1741668638781,-5541.7707729,9.992e-05,2]
[355874756,1741668638793,-9285.9660663,9.992e-05,2]
[355874757,1741668638804,-342.4425042,9.992e-05,2]
[355874758,1741668638814,-2135.6028189,9.992e-05,2]
[355874759,1741668638824,-407.27720317,9.992e-05,2]
[355874760,1741668638833,-261.5857197,9.992e-05,2]
[355874761,1741668638843,-500.0,9.997e-05,2]
[355874762,1741668638853,-500.0,9.997e-05,2]